fUST/lending_fUST_20251001
["ID","MTS","AMOUNT","RATE_DAILY","PERIOD"]
[388717745,1759333849602,-500.0,0.00019452,2]
[388717746,1759333849611,-2156.1,0.00019452,2]
[388717747,1759333849620,-500.0,0.00019452,2]
[388717748,1759333849629,-500.0,0.00019452,2]
[388717749,1759333849711,-500.0,0.00019452,2]
[388717750,1759333849728,-695.11,0.00019452,2]
[388717751,1759333849737,-480.0,0.00019452,2]
[388717752,1759333849747,-865.45,0.00019452,2]
[388717753,1759333849756,-500.0,0.00019452,2]
[388717754,1759333849765,-769.77,0.00019452,2]
[388717755,1759333849774,-464.79438669,0.00019452,2]
[388717756,1759333849783,-500.0,0.00019452,2]
[388717757,1759333849792,-1357.74,0.00019452,2]
[388717758,1759333849801,-500.0,0.00019452,2]
[388717759,1759333849810,-500.0,0.00019452,2]
[388717760,1759333849820,-1031.59,0.00019452,2]
[388717761,1759333849829,-500.0,0.00019452,2]
[388717762,1759333849838,-500.0,0.00019452,2]
[388717763,1759333849847,-151.10690839,0.00019452,2]
[388717764,1759333849856,-500.0,0.00019452,2]
[388717765,1759333849865,-730.9,0.00019452,2]
[388717766,1759333849874,-462.76775611,0.00019452,2]
[388717767,1759333849883,-450.83176503,0.00019452,2]
[388717768,1759333849893,-500.0,0.00019452,2]
[388717769,1759333849902,-500.0,0.00019452,2]
[388717770,1759333849912,-500.0,0.00019452,2]
[388717771,1759333849921,-2828.95,0.00019452,2]
[388717772,1759333849930,-500.0,0.00019452,2]
[388717773,1759333849939,-500.0,0.00019452,2]
[388717774,1759333849948,-1315.83,0.00019452,2]
[388717775,1759333849957,-500.0,0.00019452,2]
[388717776,1759333849967,-480.0,0.00019452,2]
[388717777,1759333849976,-879.15,0.00019452,2]
[388717778,1759333849986,-500.0,0.00019452,2]
[388717779,1759333849995,-500.0,0.00019452,2]
[388717780,1759333850006,-500.0,0.00019452,2]
[388717781,1759333850015,-694.27,0.00019452,2]
[388717782,1759333850024,-500.0,0.00019452,2]
[388717783,1759333850034,-500.0,0.00019452,2]
[388717784,1759333850043,-500.0,0.00019452,2]
[388717785,1759333850052,-500.0,0.00019452,2]
[388717786,1759333850061,-802.41,0.00019452,2]
[388717787,1759333850071,-774.88,0.00019452,2]
[388717788,1759333850080,-500.0,0.00019452,2]
[388717789,1759333850089,-500.0,0.00019452,2]
[388717790,1759333850099,-500.0,0.00019452,2]
[388717791,1759333850108,-674.3,0.00019452,2]
[388717792,1759333850118,-500.0,0.00019452,2]
[388717793,1759333850127,-500.0,0.00019452,2]
[388717794,1759333850137,-889.45,0.00019452,2]
[388717795,1759333850146,-464.92928109,0.00019452,2]
[388717796,1759333850158,-280.96264674,0.00019452,2]
[388717797,1759333850167,-576.8,0.00019452,2]
[388717798,1759333850177,-500.0,0.00019452,2]
[388717799,1759333850186,-500.0,0.00019452,2]
[388717800,1759333850195,-500.0,0.00019452,2]
[388717801,1759333850205,-1941.25,0.00019452,2]
[388717802,1759333850216,-500.0,0.00019452,2]
[388717803,1759333850226,-946.8,0.00019452,2]
[388717804,1759333850236,-500.0,0.00019452,2]
[388717805,1759333850245,-500.0,0.00019452,2]
[388717806,1759333850255,-471.32678361,0.00019452,2]
[388717807,1759333850265,-500.0,0.00019452,2]
[388717808,1759333850275,-500.0,0.00019452,2]
[388717809,1759333850284,-1204.29,0.00019452,2]
[388717810,1759333850293,-500.0,0.00019452,2]
[388717811,1759333850303,-1006.66,0.00019452,2]
[388717812,1759333850312,-500.0,0.00019452,2]
[388717813,1759333850324,-151.0,0.00019452,2]
[388717814,1759333850334,-151.0,0.00019452,2]
[388717815,1759333850343,-500.0,0.00019452,2]
[388717816,1759333850351,-500.0,0.00019452,2]
[388717817,1759333850361,-151.0,0.00019452,2]
[388717818,1759333850370,-151.0,0.00019452,2]
[388717819,1759333850380,-151.0,0.00019452,2]
[388717820,1759333850390,-151.0,0.00019452,2]
[388717821,1759333850399,-151.0,0.00019452,2]
[388717822,1759333850409,-151.0,0.00019452,2]
[388717823,1759333850418,-500.0,0.00019452,2]
[388717824,1759333850429,-224.486967,0.00019452,2]
[388717825,1759333850439,-222.45531,0.00019452,2]
[388717826,1759333850448,-4828.43,0.00019452,2]
[388717827,1759333850458,-958.76,0.00019452,2]
[388717828,1759333850467,-1026.85,0.00019452,2]
[388717829,1759333850476,-500.0,0.00019452,2]
[388717830,1759333850485,-500.0,0.00019452,2]
[388717831,1759333850499,-500.0,0.00019452,2]
[388717832,1759333850508,-300.0,0.00019459,2]
[388717833,1759333850517,-300.0,0.00019459,2]
[388717834,1759333850527,-300.0,0.00019459,2]
[388717835,1759333850537,-300.0,0.00019459,2]
[388717836,1759333850546,-300.0,0.00019459,2]
[388717837,1759333850555,-300.0,0.00019459,2]
[388717838,1759333850564,-300.0,0.00019459,2]
[388717839,1759333850577,-300.0,0.00019459,2]
[388717840,1759333850585,-300.0,0.00019459,2]
[388717841,1759333850595,-300.0,0.00019459,2]
[388717842,1759333850604,-300.0,0.00019459,2]
[388717843,1759333850614,-300.0,0.00019459,2]
[388717844,1759333850623,-300.0,0.00019459,2]
[388717845,1759333850632,-300.0,0.00019459,2]
[388717846,1759333850640,-300.0,0.00019459,2]
[388717847,1759333850650,-600.0,0.00019459,2]
[388717848,1759333850660,-151.0,0.000195,2]
[388717849,1759333850670,-4008.9522332,0.00019505,2]
[388717850,1759333850679,-1445.5092195,0.00019507,2]
[388717851,1759333850688,-151.0,0.0001951,2]
[388717852,1759333850698,-11541.04824857,0.0001951,2]
[388717853,1759333850707,-150.0,0.00019666,2]
[388717854,1759333850716,-164.0,0.00019666,2]
[388717855,1759333850726,-4008.9522332,0.00019673,2]
[388717856,1759333850735,-500.0,0.00019721,2]
[388717857,1759333850744,-500.0,0.00019721,2]
[388717858,1759333850753,-1000.0,0.00019721,2]
[388717859,1759333850762,-1000.0,0.00019721,2]
[388717860,1759333850772,-1000.0,0.00019721,2]
[388717861,1759333850782,-660.19102542,0.00019721,2]
[388717862,1759333850791,-1000.0,0.00019721,2]
[388717863,1759333850800,-1000.0,0.00019721,2]
[388717864,1759333850809,-503.27442745,0.00019721,2]
[388717865,1759333850818,-1000.0,0.00019721,2]
[388717866,1759333850827,-440.29279929,0.00019721,2]
[388717867,1759333850836,-1000.0,0.00019721,2]
[388717868,1759333850845,-500.0,0.00019721,2]
[388717869,1759333850854,-1000.0,0.00019721,2]
[388717870,1759333850863,-1000.0,0.00019721,2]
[388717871,1759333850872,-1000.0,0.00019721,2]
[388717872,1759333850881,-500.0,0.00019721,2]
[388717873,1759333850890,-1000.0,0.00019721,2]
[388717874,1759333850899,-500.0,0.00019721,2]
[388717875,1759333850984,-1000.0,0.00019721,2]
[388717876,1759333850993,-1000.0,0.00019721,2]
[388717877,1759333851002,-1000.0,0.00019721,2]
[388717878,1759333851011,-1000.0,0.00019721,2]
[388717879,1759333851021,-440.0,0.00019726,2]
[388717880,1759333851031,-500.0,0.00019726,2]
[388717881,1759333851040,-440.0,0.00019726,2]
[388717882,1759333851049,-500.0,0.00019726,2]
[388717883,1759333851058,-440.0,0.00019726,2]
[388717884,1759333851067,-500.0,0.00019726,2]
[388717885,1759333851078,-547.52,0.00019726,2]
[388717886,1759333851087,-389.36054809,0.00019726,2]
[388717887,1759333851096,-440.0,0.00019726,2]
[388717888,1759333851105,-500.0,0.00019726,2]
[388717889,1759333851114,-440.0,0.00019726,2]
[388717890,1759333851124,-420.0,0.00019726,2]
[388717891,1759333851133,-500.0,0.00019726,2]
[388717892,1759333851143,-500.0,0.00019726,2]
[388717893,1759333851153,-500.0,0.00019726,2]
[388717894,1759333851163,-506.41,0.00019726,2]
[388717895,1759333851172,-500.0,0.00019726,2]
[388717896,1759333851181,-500.0,0.00019726,2]
[388717897,1759333851191,-500.0,0.00019726,2]
[388717898,1759333851200,-454.44718531,0.00019726,2]
[388717899,1759333851209,-500.0,0.00019726,2]
[388717900,1759333851219,-500.0,0.00019726,2]
[388717901,1759333851228,-500.0,0.00019726,2]
[388717902,1759333851238,-500.0,0.00019726,2]
[388717903,1759333851247,-500.0,0.00019726,2]
[388717904,1759333851257,-500.0,0.00019726,2]
[388717905,1759333851266,-424.41757577,0.00019726,2]
[388717906,1759333851275,-500.0,0.00019726,2]
[388717907,1759333851284,-500.0,0.00019726,2]
[388717908,1759333851293,-500.0,0.00019726,2]
[388717909,1759333851303,-500.0,0.00019726,2]
[388717910,1759333851312,-500.0,0.00019726,2]
[388717911,1759333851322,-500.0,0.00019726,2]
[388717912,1759333851331,-441.85501196,0.00019726,2]
[388717913,1759333851340,-593.72963419,0.00019726,2]
[388717914,1759333851349,-500.0,0.00019726,2]
[388717915,1759333851358,-151.0,0.00019726,2]
[388717916,1759333851368,-442.28655064,0.00019726,2]
[388717917,1759333851376,-442.68339768,0.00019726,2]
[388717918,1759333851386,-500.0,0.00019726,2]
[388717919,1759333851395,-500.0,0.00019726,2]
[388717920,1759333851405,-500.0,0.00019726,2]
[388717921,1759333851416,-1013.78,0.00019726,2]
[388717922,1759333851425,-500.0,0.00019726,2]
[388717923,1759333851436,-500.0,0.00019726,2]
[388717924,1759333851446,-443.11188125,0.00019726,2]
[388717925,1759333851456,-500.0,0.00019726,2]
[388717926,1759333851465,-500.0,0.00019726,2]
[388717927,1759333851474,-500.0,0.00019726,2]
[388717928,1759333851484,-500.0,0.00019726,2]
[388717929,1759333851497,-460.0,0.00019726,2]
[388717930,1759333851507,-500.0,0.00019726,2]
[388717931,1759333851516,-500.0,0.00019726,2]
[388717932,1759333851525,-500.0,0.00019726,2]
[388717933,1759333851535,-500.0,0.00019726,2]
[388717934,1759333851553,-500.0,0.00019726,2]
[388717935,1759333851573,-440.0,0.00019726,2]
[388717936,1759333851592,-500.0,0.00019726,2]
[388717937,1759333851614,-500.0,0.00019726,2]
[388717938,1759333851633,-442.34479527,0.00019726,2]
[388717939,1759333851649,-1182.83,0.00019726,2]
[388717940,1759333851669,-500.0,0.00019726,2]
[388717941,1759333851684,-440.0,0.00019726,2]
[388717942,1759333851701,-422.06436435,0.00019726,2]
[388717943,1759333851719,-500.0,0.00019726,2]
[388717944,1759333851740,-460.0,0.00019726,2]
[388717945,1759333851752,-440.0,0.00019726,2]
[388717946,1759333851771,-500.0,0.00019726,2]
[388717947,1759333851785,-500.0,0.00019726,2]
[388717948,1759333851802,-500.0,0.00019726,2]
[388717949,1759333851815,-500.0,0.00019726,2]
[388717950,1759333851831,-500.0,0.00019726,2]
[388717951,1759333851846,-1283.89,0.00019726,2]
[388717952,1759333851861,-423.34877656,0.00019726,2]
[388717953,1759333851876,-500.0,0.00019726,2]
[388717954,1759333851890,-500.0,0.00019726,2]
[388717955,1759333851905,-500.0,0.00019726,2]
[388717956,1759333851920,-500.0,0.00019726,2]
[388717957,1759333851934,-500.0,0.00019726,2]
[388717958,1759333851948,-500.0,0.00019726,2]
[388717959,1759333851963,-500.0,0.00019726,2]
[388717960,1759333851977,-189.3714503,0.00019726,2]
[388717961,1759333851992,-500.0,0.00019726,2]
[388717962,1759333852007,-500.0,0.00019726,2]
[388717963,1759333852021,-500.0,0.00019726,2]
[388717964,1759333852035,-442.96174991,0.00019726,2]
[388717965,1759333852051,-501.31,0.00019726,2]
[388717966,1759333852067,-500.0,0.00019726,2]
[388717967,1759333852081,-201.17399,0.00019726,2]
[388717968,1759333852096,-440.0,0.00019726,2]
[388717969,1759333852111,-201.17399,0.00019726,2]
[388717970,1759333852126,-201.17399,0.00019726,2]
[388717971,1759333852141,-201.17399,0.00019726,2]
[388717972,1759333852162,-201.17399,0.00019726,2]
[388717973,1759333852177,-201.17399,0.00019726,2]
[388717974,1759333852192,-500.0,0.00019726,2]
[388717975,1759333852207,-201.17399,0.00019726,2]
[388717976,1759333852221,-201.17399,0.00019726,2]
[388717977,1759333852236,-500.0,0.00019726,2]
[388717978,1759333852251,-500.0,0.00019726,2]
[388717979,1759333852265,-423.00034921,0.00019726,2]
[388717980,1759333852279,-1699.56,0.00019726,2]
[388717981,1759333852301,-500.0,0.00019726,2]
[388717982,1759333852316,-500.0,0.00019726,2]
[388717983,1759333852331,-500.0,0.00019726,2]
[388717984,1759333852340,-619.57,0.00019726,2]
[388717985,1759333852349,-500.0,0.00019726,2]
[388717986,1759333852358,-500.0,0.00019726,2]
[388717987,1759333852368,-500.0,0.00019726,2]
[388717988,1759333852377,-1245.38,0.00019726,2]
[388717989,1759333852539,-440.0,0.00019726,2]
[388717990,1759333852558,-422.76319141,0.00019726,2]
[388717991,1759333852569,-500.0,0.00019726,2]
[388717992,1759333852578,-500.0,0.00019726,2]
[388717993,1759333852588,-500.0,0.00019726,2]
[388717994,1759333852597,-440.0,0.00019726,2]
[388717995,1759333852606,-500.0,0.00019726,2]
[388717996,1759333852616,-228.791014,0.00019726,2]
[388717997,1759333852625,-228.791014,0.00019726,2]
[388717998,1759333852634,-1218.45,0.00019726,2]
[388717999,1759333852643,-228.791014,0.00019726,2]
[388718000,1759333852652,-500.0,0.00019726,2]
[388718001,1759333852662,-228.791014,0.00019726,2]
[388718002,1759333852671,-228.791014,0.00019726,2]
[388718003,1759333852680,-228.791014,0.00019726,2]
[388718004,1759333852689,-500.0,0.00019726,2]
[388718005,1759333852698,-228.791014,0.00019726,2]
[388718006,1759333852708,-228.791014,0.00019726,2]
[388718007,1759333852718,-697.26,0.00019726,2]
[388718008,1759333852727,-440.0,0.00019726,2]
[388718009,1759333852737,-500.0,0.00019726,2]
[388718010,1759333852746,-489.68,0.00019726,2]
[388718011,1759333852755,-500.0,0.00019726,2]
[388718012,1759333852765,-574.7888316,0.00019726,2]
[388718013,1759333852774,-500.0,0.00019726,2]
[388718014,1759333852784,-500.0,0.00019726,2]
[388718015,1759333852793,-189.09,0.00019726,2]
[388718016,1759333852803,-561.56,0.00019726,2]
[388718017,1759333852812,-500.0,0.00019726,2]
[388718018,1759333852821,-440.0,0.00019726,2]
[388718019,1759333852831,-515.52691009,0.00019726,2]
[388718020,1759333852840,-363.59061024,0.00019726,2]
[388718021,1759333852850,-500.0,0.00019726,2]
[388718022,1759333852859,-500.0,0.00019726,2]
[388718023,1759333852868,-500.0,0.00019726,2]
[388718024,1759333852877,-1139.49,0.00019726,2]
[388718025,1759333852886,-500.0,0.00019726,2]
[388718026,1759333852896,-460.0,0.00019726,2]
[388718027,1759333852905,-649.99,0.00019726,2]
[388718028,1759333852914,-580.85,0.00019726,2]
[388718029,1759333852923,-500.0,0.00019726,2]
[388718030,1759333852933,-500.0,0.00019726,2]
[388718031,1759333852943,-500.0,0.00019726,2]
[388718032,1759333852952,-500.0,0.00019726,2]
[388718033,1759333852961,-500.0,0.00019726,2]
[388718034,1759333852969,-177.78895889,0.00019726,2]
[388718035,1759333852978,-500.0,0.00019726,2]
[388718036,1759333852988,-500.0,0.00019726,2]
[388718037,1759333852997,-500.0,0.00019726,2]
[388718038,1759333853006,-500.0,0.00019726,2]
[388718039,1759333853015,-500.0,0.00019726,2]
[388718040,1759333853025,-500.0,0.00019726,2]
[388718041,1759333853034,-500.0,0.00019726,2]
[388718042,1759333853044,-500.0,0.00019726,2]
[388718043,1759333853054,-406.52147331,0.00019726,2]
[388718044,1759333853064,-1252.39,0.00019726,2]
[388718045,1759333853073,-500.0,0.00019726,2]
[388718046,1759333853083,-500.0,0.00019726,2]
[388718047,1759333853092,-460.0,0.00019726,2]
[388718048,1759333853101,-500.0,0.00019726,2]
[388718049,1759333853111,-500.0,0.00019726,2]
[388718050,1759333853120,-673.11,0.00019726,2]
[388718051,1759333853129,-500.0,0.00019726,2]
[388718052,1759333853139,-593.58,0.00019726,2]
[388718053,1759333853148,-581.43,0.00019726,2]
[388718054,1759333853158,-500.0,0.00019726,2]
[388718055,1759333853169,-500.0,0.00019726,2]
[388718056,1759333853178,-186.69362217,0.00019726,2]
[388718057,1759333853188,-500.0,0.00019726,2]
[388718058,1759333853197,-500.0,0.00019726,2]
[388718059,1759333853207,-440.0,0.00019726,2]
[388718060,1759333853216,-500.0,0.00019726,2]
[388718061,1759333853225,-500.0,0.00019726,2]
[388718062,1759333853235,-500.0,0.00019726,2]
[388718063,1759333853244,-500.0,0.00019726,2]
[388718064,1759333853254,-500.0,0.00019726,2]
[388718065,1759333853263,-500.0,0.00019726,2]
[388718066,1759333853273,-500.0,0.00019726,2]
[388718067,1759333853283,-500.0,0.00019726,2]
[388718068,1759333853292,-500.0,0.00019726,2]
[388718069,1759333853301,-500.0,0.00019726,2]
[388718070,1759333853311,-500.0,0.00019726,2]
[388718071,1759333853320,-500.0,0.00019726,2]
[388718072,1759333853329,-500.0,0.00019726,2]
[388718073,1759333853338,-2788.89,0.00019726,2]
[388718074,1759333853347,-460.0,0.00019726,2]
[388718075,1759333853357,-500.0,0.00019726,2]
[388718076,1759333853367,-500.0,0.00019726,2]
[388718077,1759333853376,-500.0,0.00019726,2]
[388718078,1759333853386,-500.0,0.00019726,2]
[388718079,1759333853396,-505.38,0.00019726,2]
[388718080,1759333853405,-500.0,0.00019726,2]
[388718081,1759333853414,-3890.96,0.00019726,2]
[388718082,1759333853424,-500.0,0.00019726,2]
[388718083,1759333853433,-440.0,0.00019726,2]
[388718084,1759333853442,-422.77723507,0.00019726,2]
[388718085,1759333853451,-500.0,0.00019726,2]
[388718086,1759333853460,-546.77,0.00019726,2]
[388718087,1759333853469,-500.0,0.00019726,2]
[388718088,1759333853479,-421.57754388,0.00019726,2]
[388718089,1759333853490,-500.0,0.00019726,2]
[388718090,1759333853502,-500.0,0.00019726,2]
[388718091,1759333853512,-1253.5,0.00019726,2]
[388718092,1759333853521,-500.0,0.00019726,2]
[388718093,1759333853530,-500.0,0.00019726,2]
[388718094,1759333853540,-500.0,0.00019726,2]
[388718095,1759333853549,-460.0,0.00019726,2]
[388718096,1759333853558,-500.0,0.00019726,2]
[388718097,1759333853568,-440.0,0.00019726,2]
[388718098,1759333853579,-500.0,0.00019726,2]
[388718099,1759333853589,-500.0,0.00019726,2]
[388718100,1759333853598,-500.0,0.00019726,2]
[388718101,1759333853607,-500.0,0.00019726,2]
[388718102,1759333853617,-500.0,0.00019726,2]
[388718103,1759333853627,-500.0,0.00019726,2]
[388718104,1759333853636,-500.0,0.00019726,2]
[388718105,1759333853646,-500.0,0.00019726,2]
[388718106,1759333853655,-420.0,0.00019726,2]
[388718107,1759333853665,-1000.0,0.00019726,2]
[388718108,1759333853676,-3737.4,0.00019726,2]
[388718109,1759333853686,-500.0,0.00019726,2]
[388718110,1759333853695,-500.0,0.00019726,2]
[388718111,1759333853705,-500.0,0.00019726,2]
[388718112,1759333853715,-500.0,0.00019726,2]
[388718113,1759333853725,-1411.25,0.00019726,2]
[388718114,1759333853735,-460.0,0.00019726,2]
[388718115,1759333853744,-500.0,0.00019726,2]
[388718116,1759333853754,-871.72,0.00019726,2]
[388718117,1759333853764,-500.0,0.00019726,2]
[388718118,1759333853774,-642.5,0.00019726,2]
[388718119,1759333853783,-460.0,0.00019726,2]
[388718120,1759333853793,-500.0,0.00019726,2]
[388718121,1759333853803,-500.0,0.00019726,2]
[388718122,1759333853812,-1722.18,0.00019726,2]
[388718123,1759333853822,-942.64,0.00019726,2]
[388718124,1759333853831,-6817.05,0.00019726,2]
[388718125,1759333853842,-500.0,0.00019726,2]
[388718126,1759333853851,-500.0,0.00019726,2]
[388718127,1759333853860,-1262.31,0.00019726,2]
[388718128,1759333853869,-480.0,0.00019726,2]
[388718129,1759333853879,-531.27,0.00019726,2]
[388718130,1759333853888,-500.0,0.00019726,2]
[388718131,1759333853898,-500.0,0.00019726,2]
[388718132,1759333853908,-500.0,0.00019726,2]
[388718133,1759333853917,-500.0,0.00019726,2]
[388718134,1759333853927,-500.0,0.00019726,2]
[388718135,1759333853936,-500.0,0.00019726,2]
[388718136,1759333853946,-500.0,0.00019726,2]
[388718137,1759333853955,-500.0,0.00019726,2]
[388718138,1759333853966,-1321.2,0.00019726,2]
[388718139,1759333853975,-500.0,0.00019726,2]
[388718140,1759333853985,-500.0,0.00019726,2]
[388718141,1759333853994,-500.0,0.00019726,2]
[388718142,1759333854004,-500.0,0.00019726,2]
[388718143,1759333854014,-500.0,0.00019726,2]
[388718144,1759333854023,-1669.72,0.00019726,2]
[388718145,1759333854032,-500.0,0.00019726,2]
[388718146,1759333854042,-500.0,0.00019726,2]
[388718147,1759333854051,-1541.89,0.00019726,2]
[388718148,1759333854060,-2758.88,0.00019726,2]
[388718149,1759333854071,-500.0,0.00019726,2]
[388718150,1759333854080,-500.0,0.00019726,2]
[388718151,1759333854089,-1419.74,0.00019726,2]
[388718152,1759333854098,-500.0,0.00019726,2]
[388718153,1759333854108,-500.0,0.00019726,2]
[388718154,1759333854117,-500.0,0.00019726,2]
[388718155,1759333854127,-500.0,0.00019726,2]
[388718156,1759333854136,-500.0,0.00019726,2]
[388718157,1759333854145,-500.0,0.00019726,2]
[388718158,1759333854155,-500.0,0.00019726,2]
[388718159,1759333854164,-500.0,0.00019726,2]
[388718160,1759333854173,-848.44,0.00019726,2]
[388718161,1759333854183,-970.37,0.00019726,2]
[388718162,1759333854192,-500.0,0.00019726,2]
[388718163,1759333854202,-500.0,0.00019726,2]
[388718164,1759333854211,-500.0,0.00019726,2]
[388718165,1759333854220,-500.0,0.00019726,2]
[388718166,1759333854230,-500.0,0.00019726,2]
[388718167,1759333854239,-500.0,0.00019726,2]
[388718168,1759333854248,-500.0,0.00019726,2]
[388718169,1759333854258,-1114.51,0.00019726,2]
[388718170,1759333854267,-500.0,0.00019726,2]
[388718171,1759333854276,-500.0,0.00019726,2]
[388718172,1759333854285,-1468.27,0.00019726,2]
[388718173,1759333854294,-500.0,0.00019726,2]
[388718174,1759333854303,-500.0,0.00019726,2]
[388718175,1759333854312,-535.49,0.00019726,2]
[388718176,1759333854322,-500.0,0.00019726,2]
[388718177,1759333854330,-500.0,0.00019726,2]
[388718178,1759333854339,-734.32,0.00019726,2]
[388718179,1759333854348,-500.0,0.00019726,2]
[388718180,1759333854357,-500.0,0.00019726,2]
[388718181,1759333854366,-349.83829118,0.00019726,2]
[388718182,1759333854375,-748.13,0.00019726,2]
[388718183,1759333854384,-500.0,0.00019726,2]
[388718184,1759333854393,-517.44,0.00019726,2]
[388718185,1759333854402,-500.0,0.00019726,2]
[388718186,1759333854412,-659.58,0.00019726,2]
[388718187,1759333854421,-500.0,0.00019726,2]
[388718188,1759333854430,-500.0,0.00019726,2]
[388718189,1759333854440,-500.0,0.00019726,2]
[388718190,1759333854449,-463.85082517,0.00019726,2]
[388718191,1759333854458,-480.0,0.00019726,2]
[388718192,1759333854467,-500.0,0.00019726,2]
[388718193,1759333854477,-500.0,0.00019726,2]
[388718194,1759333854486,-676.43,0.00019726,2]
[388718195,1759333854499,-500.0,0.00019726,2]
[388718196,1759333854509,-480.0,0.00019726,2]
[388718197,1759333854520,-500.0,0.00019726,2]
[388718198,1759333854531,-445.22743303,0.00019726,2]
[388718199,1759333854540,-2156.1,0.00019726,2]
[388718200,1759333854645,-500.0,0.00019726,2]
[388718201,1759333854654,-500.0,0.00019726,2]
[388718202,1759333854663,-500.0,0.00019726,2]
[388718203,1759333854672,-695.11,0.00019726,2]
[388718204,1759333854682,-865.45,0.00019726,2]
[388718205,1759333854691,-500.0,0.00019726,2]
[388718206,1759333854701,-769.77,0.00019726,2]
[388718207,1759333854711,-500.0,0.00019726,2]
[388718208,1759333854720,-1357.74,0.00019726,2]
[388718209,1759333854729,-460.0,0.00019726,2]
[388718210,1759333854739,-460.0,0.00019726,2]
[388718211,1759333854749,-435.04087973,0.00019726,2]
[388718212,1759333854758,-460.0,0.00019726,2]
[388718213,1759333854767,-1031.59,0.00019726,2]
[388718214,1759333854777,-500.0,0.00019726,2]
[388718215,1759333854787,-730.9,0.00019726,2]
[388718216,1759333854796,-500.0,0.00019726,2]
[388718217,1759333854805,-500.0,0.00019726,2]
[388718218,1759333854814,-500.0,0.00019726,2]
[388718219,1759333854824,-2828.95,0.00019726,2]
[388718220,1759333854833,-500.0,0.00019726,2]
[388718221,1759333854842,-1315.83,0.00019726,2]
[388718222,1759333854851,-500.0,0.00019726,2]
[388718223,1759333854860,-879.15,0.00019726,2]
[388718224,1759333854869,-500.0,0.00019726,2]
[388718225,1759333854878,-500.0,0.00019726,2]
[388718226,1759333854887,-500.0,0.00019726,2]
[388718227,1759333854897,-694.27,0.00019726,2]
[388718228,1759333854906,-500.0,0.00019726,2]
[388718229,1759333854916,-500.0,0.00019726,2]
[388718230,1759333854925,-500.0,0.00019726,2]
[388718231,1759333854935,-802.41,0.00019726,2]
[388718232,1759333854944,-774.88,0.00019726,2]
[388718233,1759333854954,-500.0,0.00019726,2]
[388718234,1759333854963,-500.0,0.00019726,2]
[388718235,1759333854972,-674.3,0.00019726,2]
[388718236,1759333854981,-500.0,0.00019726,2]
[388718237,1759333854991,-460.0,0.00019726,2]
[388718238,1759333855001,-889.45,0.00019726,2]
[388718239,1759333855011,-576.8,0.00019726,2]
[388718240,1759333855020,-440.0,0.00019726,2]
[388718241,1759333855029,-500.0,0.00019726,2]
[388718242,1759333855039,-1941.25,0.00019726,2]
[388718243,1759333855048,-500.0,0.00019726,2]
[388718244,1759333855057,-946.8,0.00019726,2]